fUSD/lending_fUSD_20260519
["ID","MTS","AMOUNT","RATE_DAILY","PERIOD"]
[422648694,1779205848000,-151.0,0.00025,2]
[422648697,1779205848000,-151.0,0.00025,2]
[422648696,1779205848000,-151.0,0.00025,2]
[422648698,1779205848000,-897.36146,0.00025,2]
[422648700,1779205848000,-897.36146,0.00025,2]
[422648699,1779205848000,-897.36146,0.00025,2]
[422648719,1779205848000,-236.64,0.00025644,2]
[422648702,1779205848000,-151.0,0.00025,2]
[422648703,1779205848000,-151.0,0.00025,2]
[422648705,1779205848000,-151.0,0.00025,2]
[422648707,1779205848000,-151.0,0.00025,2]
[422648706,1779205848000,-151.0,0.00025,2]
[422648709,1779205848000,-151.0,0.00025,2]
[422648710,1779205848000,-156.024164,0.00025,2]
[422648708,1779205848000,-151.0,0.00025,2]
[422648711,1779205848000,-151.0,0.00025,2]
[422648714,1779205848000,-166.63263696,0.00025266,2]
[422648712,1779205848000,-663.38,0.00025052,7]
[422648716,1779205848000,-151.0,0.00025497,7]
[422648713,1779205848000,-1298.05475909,0.000251,30]
[422648715,1779205848000,-4423.03224881,0.000253,2]
[422648701,1779205848000,-897.36146,0.00025,2]
[422648748,1779205848000,-1850.0,0.00026223,2]
[422648757,1779205848000,-650.0,0.00026232,2]
[422648750,1779205848000,-1690.0,0.00026223,2]
[422648784,1779205848000,-1224.0,0.00027377,2]
[422648785,1779205848000,-249.21,0.00027386,7]
[422648786,1779205848000,-284.0,0.00027386,7]
[422648787,1779205848000,-2895.78042953,0.00027397,2]
[422648788,1779205848000,-2895.78042953,0.00027397,2]
[422648791,1779205848000,-150.0,0.00027397,2]
[422648790,1779205848000,-500.0,0.00027397,2]
[422648789,1779205848000,-2895.78042953,0.00027397,2]
[422648793,1779205848000,-151.0,0.00027397,2]
[422648792,1779205848000,-1500.0,0.00027397,2]
[422648795,1779205848000,-151.0,0.00027397,2]
[422648794,1779205848000,-151.0,0.00027397,2]
[422648796,1779205848000,-151.0,0.00027397,2]
[422648798,1779205848000,-290.170748,0.00027397,2]
[422648797,1779205848000,-151.0,0.00027397,2]
[422648802,1779205848000,-151.0,0.00027397,2]
[422648803,1779205848000,-151.0,0.00027397,2]
[422648801,1779205848000,-599.68,0.00027397,2]
[422648799,1779205848000,-300.0,0.00027397,2]
[422648800,1779205848000,-1465.85,0.00027397,2]
[422648805,1779205848000,-151.0,0.00027397,2]
[422648804,1779205848000,-151.0,0.00027397,2]
[422648808,1779205848000,-151.0,0.00027397,2]
[422648806,1779205848000,-151.0,0.00027397,2]
[422648807,1779205848000,-151.0,0.00027397,2]
[422648810,1779205848000,-220.16730804,0.00027397,2]
[422648749,1779205848000,-1850.0,0.00026223,2]
[422648781,1779205848000,-4423.03224881,0.000273,2]
[422648783,1779205848000,-625.0,0.00027377,2]
[422648809,1779205848000,-151.0,0.00027397,2]
[422648778,1779205848000,-150.0,0.00027093,2]
[422648752,1779205848000,-2000.0,0.00026227,2]
[422648751,1779205848000,-2000.0,0.00026227,2]
[422648754,1779205848000,-1172.0,0.00026227,2]
[422648753,1779205848000,-2000.0,0.00026227,2]
[422648755,1779205848000,-650.0,0.00026232,2]
[422648756,1779205848000,-650.0,0.00026232,2]
[422648759,1779205848000,-650.0,0.00026232,2]
[422648758,1779205848000,-650.0,0.00026232,2]
[422648760,1779205848000,-650.0,0.00026232,2]
[422648762,1779205848000,-650.0,0.00026232,2]
[422648764,1779205848000,-534.0,0.00026232,2]
[422648763,1779205848000,-650.0,0.00026232,2]
[422648765,1779205848000,-1138.41267403,0.00026264,7]
[422648761,1779205848000,-650.0,0.00026232,2]
[422648767,1779205848000,-4423.03224881,0.000263,2]
[422648782,1779205848000,-178.36026588,0.000273,30]
[422648766,1779205848000,-203.3,0.00026296,2]
[422648779,1779205848000,-4423.03224881,0.000271,2]
[422648774,1779205848000,-537.95,0.00026743,6]
[422648775,1779205848000,-4423.03224881,0.000268,2]
[422648776,1779205848000,-2000.0,0.00027,2]
[422648777,1779205848000,-2575.529742,0.0002701,2]
[422648780,1779205848000,-150.0,0.00027123,20]
[422648772,1779205848000,-500.0,0.00026743,6]
[422648771,1779205848000,-4423.03224881,0.000265,2]
[422648770,1779205848000,-166.63,0.00026484,2]
[422648769,1779205848000,-258.862199,0.00026397,2]
[422648773,1779205848000,-500.0,0.00026743,6]
[422648768,1779205848000,-1138.41267403,0.00026393,7]
[422648852,1779205849000,-2224.7173499,0.00027618,2]
[422648851,1779205849000,-10989.1687793,0.00027618,2]
[422648847,1779205849000,-500.0,0.000274,2]
[422648850,1779205849000,-519612.4690399,0.00027618,2]
[422648848,1779205849000,-599.19,0.000274,2]
[422648846,1779205849000,-500.0,0.000274,2]
[422648842,1779205849000,-151.0,0.00027397,2]
[422648844,1779205849000,-151.0,0.00027397,2]
[422648843,1779205849000,-151.0,0.00027397,2]
[422648853,1779205849000,-35535.3905211,0.00027618,2]
[422648849,1779205849000,-284.0,0.00027616,14]
[422648841,1779205849000,-254.52837,0.00027397,2]
[422648869,1779205849000,-606.77,0.00028329,2]
[422648854,1779205849000,-183.68,0.00027702,2]
[422648856,1779205849000,-152.0,0.0002791,3]
[422648857,1779205849000,-202.0495706,0.00028,2]
[422648858,1779205849000,-1132.14946596,0.00028,2]
[422648863,1779205849000,-663.38,0.00028104,7]
[422648861,1779205849000,-160.0,0.00028,10]
[422648859,1779205849000,-124514.22854957,0.00028,30]
[422648862,1779205849000,-634.29,0.000281,7]
[422648865,1779205849000,-166.63,0.00028311,2]
[422648860,1779205849000,-179.53871051,0.00028,10]
[422648864,1779205849000,-203.3,0.00028267,2]
[422648866,1779205849000,-1570.73,0.00028321,2]
[422648845,1779205849000,-13560.08,0.00027397,10]
[422648855,1779205849000,-500.0,0.000278,7]
[422648836,1779205849000,-254.52837,0.00027397,2]
[422648828,1779205849000,-254.52837,0.00027397,2]
[422648840,1779205849000,-254.52837,0.00027397,2]
[422648868,1779205849000,-1593.31,0.00028325,2]
[422648811,1779205849000,-338.091489,0.00027397,2]
[422648812,1779205849000,-338.091489,0.00027397,2]
[422648814,1779205849000,-338.091489,0.00027397,2]
[422648815,1779205849000,-338.091489,0.00027397,2]
[422648813,1779205849000,-338.091489,0.00027397,2]
[422648817,1779205849000,-338.091489,0.00027397,2]
[422648818,1779205849000,-338.091489,0.00027397,2]
[422648819,1779205849000,-338.091489,0.00027397,2]
[422648820,1779205849000,-338.091489,0.00027397,2]
[422648821,1779205849000,-338.091489,0.00027397,2]
[422648822,1779205849000,-338.091489,0.00027397,2]
[422648839,1779205849000,-254.52837,0.00027397,2]
[422648823,1779205849000,-151.0,0.00027397,2]
[422648827,1779205849000,-151.0,0.00027397,2]
[422648829,1779205849000,-151.0,0.00027397,2]
[422648825,1779205849000,-151.0,0.00027397,2]
[422648826,1779205849000,-254.52837,0.00027397,2]
[422648831,1779205849000,-151.0,0.00027397,2]
[422648830,1779205849000,-151.0,0.00027397,2]
[422648832,1779205849000,-254.52837,0.00027397,2]
[422648833,1779205849000,-157.131723,0.00027397,2]
[422648834,1779205849000,-254.52837,0.00027397,2]
[422648838,1779205849000,-254.52837,0.00027397,2]
[422648837,1779205849000,-254.52837,0.00027397,2]
[422648835,1779205849000,-254.52837,0.00027397,2]
[422648824,1779205849000,-254.52837,0.00027397,2]
[422648867,1779205849000,-618.69,0.00028325,2]
[422648816,1779205849000,-338.091489,0.00027397,2]
[422648875,1779205849000,-606.77,0.00028376,7]
[422648904,1779205849000,-2314.0,0.0002853,3]
[422648905,1779205849000,-2313.0,0.0002853,3]
[422648903,1779205849000,-163.0,0.0002853,3]
[422648906,1779205849000,-163.0,0.0002853,3]
[422648907,1779205849000,-2314.0,0.0002853,3]
[422648908,1779205849000,-2314.0,0.0002853,3]
[422648911,1779205849000,-1038.63,0.00028534,7]
[422648910,1779205849000,-1041.07,0.00028531,7]
[422648909,1779205849000,-2314.0,0.0002853,3]
[422648912,1779205849000,-225.82,0.0002854,2]
[422648914,1779205849000,-1570.73,0.0002856,30]
[422648915,1779205849000,-618.69,0.00028563,30]
[422648899,1779205849000,-618.69,0.00028516,7]
[422648913,1779205849000,-220.04,0.00028542,2]
[422648916,1779205849000,-1593.31,0.00028563,30]
[422648918,1779205849000,-1041.07,0.00028577,30]
[422648919,1779205849000,-1038.63,0.0002858,30]
[422648920,1779205849000,-225.82,0.00028584,7]
[422648922,1779205849000,-61632.86,0.000286,2]
[422648923,1779205849000,-981.0,0.000286,7]
[422648921,1779205849000,-220.04,0.00028585,7]
[422648924,1779205849000,-1570.73,0.00028608,2]
[422648927,1779205849000,-606.77,0.00028614,2]
[422648871,1779205849000,-1038.63,0.00028348,2]
[422648926,1779205849000,-1593.31,0.00028611,2]
[422648928,1779205849000,-686098.72491493,0.00028623,2]
[422648917,1779205849000,-606.77,0.00028566,30]
[422648902,1779205849000,-2314.0,0.0002853,3]
[422648925,1779205849000,-618.69,0.00028611,2]
[422648898,1779205849000,-1570.73,0.00028512,7]
[422648901,1779205849000,-606.77,0.00028519,7]
[422648870,1779205849000,-1041.07,0.00028344,2]
[422648874,1779205849000,-1593.31,0.00028372,7]
[422648872,1779205849000,-1570.73,0.00028368,7]
[422648876,1779205849000,-1041.07,0.0002839,7]
[422648877,1779205849000,-1038.63,0.00028394,7]
[422648879,1779205849000,-220.04,0.00028413,2]
[422648878,1779205849000,-225.82,0.00028411,2]
[422648881,1779205849000,-618.69,0.0002842,30]
[422648880,1779205849000,-1570.73,0.00028416,30]
[422648883,1779205849000,-606.77,0.00028424,30]
[422648882,1779205849000,-1593.31,0.0002842,30]
[422648885,1779205849000,-1038.63,0.00028441,30]
[422648873,1779205849000,-618.69,0.00028372,7]
[422648884,1779205849000,-1041.07,0.00028437,30]
[422648889,1779205849000,-1570.73,0.00028464,2]
[422648897,1779205849000,-17998.34276408,0.00028501,2]
[422648895,1779205849000,-225.82,0.00028497,30]
[422648893,1779205849000,-1041.07,0.00028484,2]
[422648891,1779205849000,-1593.31,0.00028468,2]
[422648900,1779205849000,-1593.31,0.00028516,7]
[422648892,1779205849000,-606.77,0.00028471,2]
[422648887,1779205849000,-220.04,0.00028456,7]
[422648894,1779205849000,-1038.63,0.00028487,2]
[422648896,1779205849000,-220.04,0.00028499,30]
[422648888,1779205849000,-150.0,0.00028457,2]
[422648890,1779205849000,-618.69,0.00028468,2]
[422648886,1779205849000,-225.82,0.00028454,7]
[422648959,1779205850000,-151.0,0.00028624,7]
[422648968,1779205850000,-897.36146,0.00028624,7]
[422648958,1779205850000,-178.950846,0.00028624,7]
[422648961,1779205850000,-151.0,0.00028624,7]
[422648960,1779205850000,-155.97866,0.00028624,7]
[422648962,1779205850000,-151.0,0.00028624,7]
[422648964,1779205850000,-151.0,0.00028624,7]
[422648966,1779205850000,-897.36146,0.00028624,7]
[422648965,1779205850000,-153.008392,0.00028624,7]
[422648967,1779205850000,-897.36146,0.00028624,7]
[422648963,1779205850000,-234.357101,0.00028624,7]
[422648974,1779205850000,-242.170365,0.00028624,7]
[422648971,1779205850000,-151.0,0.00028624,7]
[422648970,1779205850000,-151.0,0.00028624,7]
[422648973,1779205850000,-151.0,0.00028624,7]
[422648975,1779205850000,-151.0,0.00028624,7]
[422648972,1779205850000,-234.52144,0.00028624,7]
[422648976,1779205850000,-151.0,0.00028624,7]
[422648978,1779205850000,-225.82,0.00028627,30]
[422648977,1779205850000,-151.0,0.00028624,7]
[422648979,1779205850000,-1038.63,0.00028627,2]
[422648980,1779205850000,-220.04,0.00028628,30]
[422648956,1779205850000,-151.0,0.00028624,7]
[422648969,1779205850000,-897.36146,0.00028624,7]
[422648957,1779205850000,-151.0,0.00028624,7]
[422648942,1779205850000,-151.0,0.00028624,7]
[422648953,1779205850000,-254.52837,0.00028624,7]
[422648929,1779205850000,-48254.81636108,0.00028624,2]
[422648930,1779205850000,-151.0,0.00028624,7]
[422648931,1779205850000,-151.0,0.00028624,7]
[422648932,1779205850000,-151.0,0.00028624,7]
[422648934,1779205850000,-299.123676,0.00028624,7]
[422648933,1779205850000,-215.388487,0.00028624,7]
[422648936,1779205850000,-151.0,0.00028624,7]
[422648938,1779205850000,-274.662843,0.00028624,7]
[422648940,1779205850000,-274.662839,0.00028624,7]
[422648939,1779205850000,-274.662843,0.00028624,7]
[422648937,1779205850000,-274.662843,0.00028624,7]
[422648955,1779205850000,-1041.07,0.00028624,2]
[422648935,1779205850000,-151.0,0.00028624,7]
[422648945,1779205850000,-338.091489,0.00028624,7]
[422648944,1779205850000,-338.091489,0.00028624,7]
[422648943,1779205850000,-338.091489,0.00028624,7]
[422648946,1779205850000,-338.091489,0.00028624,7]
[422648947,1779205850000,-159.28972,0.00028624,7]
[422648949,1779205850000,-159.28972,0.00028624,7]
[422648950,1779205850000,-159.28972,0.00028624,7]
[422648951,1779205850000,-254.52837,0.00028624,7]
[422648952,1779205850000,-254.52837,0.00028624,7]
[422648948,1779205850000,-159.28972,0.00028624,7]
[422648954,1779205850000,-254.52837,0.00028624,7]
[422648941,1779205850000,-151.0,0.00028624,7]
[422648983,1779205850000,-1593.31,0.00028659,7]
[422648981,1779205850000,-1570.73,0.00028656,7]
[422648984,1779205850000,-606.77,0.00028662,7]
[422649012,1779205850000,-1041.07,0.00028811,7]
[422649015,1779205850000,-220.04,0.00028844,7]
[422649014,1779205850000,-225.82,0.00028843,7]
[422649016,1779205850000,-1570.73,0.00028848,30]
[422649017,1779205850000,-2314.0,0.0002885,3]
[422649018,1779205850000,-320.0,0.0002885,3]
[422649019,1779205850000,-1587.0,0.0002885,3]
[422649020,1779205850000,-618.69,0.0002885,30]
[422649022,1779205850000,-2314.0,0.0002885,3]
[422649021,1779205850000,-163.0,0.0002885,3]
[422649025,1779205850000,-1041.07,0.00028858,30]
[422649013,1779205850000,-1038.63,0.00028813,7]
[422649023,1779205850000,-1593.31,0.0002885,30]
[422649026,1779205850000,-1038.63,0.0002886,30]
[422649028,1779205850000,-220.04,0.00028887,30]
[422649030,1779205850000,-618.69,0.00028898,2]
[422649029,1779205850000,-1570.73,0.00028896,2]
[422649031,1779205850000,-606.77,0.00028899,2]
[422649032,1779205850000,-1041.07,0.00028905,2]
[422649034,1779205850000,-183.66592182,0.00028919,2]
[422649033,1779205850000,-1038.63,0.00028906,2]
[422649036,1779205850000,-220.04,0.0002893,2]
[422649035,1779205850000,-225.82,0.0002893,2]
[422648982,1779205850000,-618.69,0.00028659,7]
[422649027,1779205850000,-225.82,0.00028886,30]
[422649009,1779205850000,-618.69,0.00028802,7]
[422649024,1779205850000,-606.77,0.00028852,30]
[422649010,1779205850000,-1593.31,0.00028802,7]
[422648986,1779205850000,-1041.07,0.00028671,7]
[422649011,1779205850000,-606.77,0.00028804,7]
[422648985,1779205850000,-225.82,0.0002867,2]
[422648988,1779205850000,-1038.63,0.00028674,7]
[422648987,1779205850000,-220.04,0.00028671,2]
[422648990,1779205850000,-618.69,0.00028707,30]
[422648989,1779205850000,-1570.73,0.00028704,30]
[422648991,1779205850000,-1593.31,0.00028707,30]
[422648995,1779205850000,-1041.07,0.00028718,30]
[422648994,1779205850000,-220.04,0.00028715,7]
[422648993,1779205850000,-225.82,0.00028713,7]
[422648996,1779205850000,-1038.63,0.0002872,30]
[422648992,1779205850000,-606.77,0.00028709,30]
[422648998,1779205850000,-618.69,0.00028755,2]
[422649008,1779205850000,-220.04,0.00028801,2]
[422649007,1779205850000,-1570.73,0.000288,7]
[422649006,1779205850000,-225.82,0.000288,2]
[422649005,1779205850000,-1038.63,0.00028767,2]
[422649002,1779205850000,-220.04,0.00028758,30]
[422649004,1779205850000,-500.0,0.00028767,2]
[422649001,1779205850000,-606.77,0.00028757,2]
[422649000,1779205850000,-225.82,0.00028757,30]
[422648997,1779205850000,-1570.73,0.00028752,2]
[422648999,1779205850000,-1593.31,0.00028755,2]
[422649003,1779205850000,-1041.07,0.00028765,2]
[422649081,1779205851000,-1587.0,0.0002917,3]
[422649079,1779205851000,-2314.0,0.0002917,3]
[422649076,1779205851000,-1038.63,0.00029139,30]
[422649078,1779205851000,-220.04,0.00029146,30]
[422649077,1779205851000,-225.82,0.00029146,30]
[422649070,1779205851000,-188.38146625,0.00029122,2]
[422649074,1779205851000,-606.77,0.00029137,30]
[422649073,1779205851000,-618.69,0.00029137,30]
[422649071,1779205851000,-166.23098422,0.00029127,7]
[422649072,1779205851000,-1570.73,0.00029136,30]
[422649082,1779205851000,-1570.73,0.00029184,2]
[422649075,1779205851000,-1041.07,0.00029139,30]
[422649080,1779205851000,-2314.0,0.0002917,3]
[422649091,1779205851000,-618.8,0.00029232,7]
[422649084,1779205851000,-606.77,0.00029185,2]
[422649085,1779205851000,-1041.07,0.00029186,2]
[422649086,1779205851000,-1038.63,0.00029186,2]
[422649087,1779205851000,-225.82,0.00029189,2]
[422649088,1779205851000,-220.04,0.00029189,2]
[422649089,1779205851000,-249.21,0.00029232,7]
[422649095,1779205851000,-606.82,0.00029232,7]
[422649090,1779205851000,-1041.07,0.00029232,7]
[422649092,1779205851000,-225.96,0.00029232,7]
[422649093,1779205851000,-1570.81,0.00029232,7]
[422649094,1779205851000,-1038.77,0.00029232,7]
[422649097,1779205851000,-2314.0,0.0002949,3]
[422649069,1779205851000,-263.65215674,0.00029122,7]
[422649083,1779205851000,-618.69,0.00029185,2]
[422649067,1779205851000,-225.82,0.00029103,7]
[422649040,1779205851000,-1041.07,0.00028952,7]
[422649065,1779205851000,-61632.86,0.000291,2]
[422649037,1779205851000,-1570.73,0.00028944,7]
[422649039,1779205851000,-606.77,0.00028947,7]
[422649038,1779205851000,-618.69,0.00028946,7]
[422649041,1779205851000,-1038.63,0.00028953,7]
[422649042,1779205851000,-225.82,0.00028973,7]
[422649043,1779205851000,-220.04,0.00028973,7]
[422649045,1779205851000,-618.69,0.00028993,30]
[422649044,1779205851000,-1570.73,0.00028992,30]
[422649047,1779205851000,-284.0,0.00028997,14]
[422649046,1779205851000,-606.77,0.00028995,30]
[422649048,1779205851000,-1041.07,0.00028998,30]
[422649049,1779205851000,-215.15951567,0.00029,7]
[422649052,1779205851000,-220.04,0.00029017,30]
[422649068,1779205851000,-220.04,0.00029103,7]
[422649050,1779205851000,-1038.63,0.00029,30]
[422649051,1779205851000,-225.82,0.00029016,30]
[422649100,1779205851000,-163.0,0.0002949,3]
[422649054,1779205851000,-618.69,0.00029041,2]
[422649056,1779205851000,-1041.07,0.00029045,2]
[422649057,1779205851000,-1038.63,0.00029046,2]
[422649058,1779205851000,-225.82,0.00029059,2]
[422649061,1779205851000,-618.69,0.00029089,7]
[422649059,1779205851000,-220.04,0.0002906,2]
[422649060,1779205851000,-1570.73,0.00029088,7]
[422649063,1779205851000,-1041.07,0.00029092,7]
[422649062,1779205851000,-606.77,0.0002909,7]
[422649064,1779205851000,-1038.63,0.00029093,7]
[422649066,1779205851000,-61632.86,0.000291,2]
[422649055,1779205851000,-606.77,0.00029042,2]
[422649096,1779205851000,-220.19,0.00029232,7]
[422649053,1779205851000,-1570.73,0.0002904,2]
[422649101,1779205851000,-1587.0,0.0002949,3]
[422649133,1779205851000,-1137117.44530194,0.0003013,7]
[422649134,1779205851000,-50056.93728477,0.0003013,2]
[422649136,1779205851000,-14076.48827099,0.0003013,2]
[422649135,1779205851000,-1091.08783674,0.0003013,2]
[422649137,1779205851000,-644.38078689,0.0003013,2]
[422649138,1779205851000,-204.99260449,0.0003013,2]
[422649139,1779205851000,-1539327.36010209,0.0003013,7]
[422649140,1779205851000,-20666.78906345,0.0003013,7]
[422649141,1779205851000,-1800.0,0.0003013,2]
[422649143,1779205851000,-151.0,0.0003013,7]
[422649142,1779205851000,-151.0,0.0003013,7]
[422649144,1779205851000,-338.091489,0.0003013,7]
[422649145,1779205851000,-338.091489,0.0003013,7]
[422649132,1779205851000,-154.79001677,0.00030127,7]
[422649146,1779205851000,-338.091489,0.0003013,7]
[422649148,1779205851000,-159.28972,0.0003013,7]
[422649147,1779205851000,-338.091483,0.0003013,7]
[422649149,1779205851000,-159.28972,0.0003013,7]
[422649151,1779205851000,-159.289718,0.0003013,7]
[422649152,1779205851000,-254.52837,0.0003013,7]
[422649153,1779205851000,-254.52837,0.0003013,7]
[422649156,1779205851000,-151.0,0.0003013,7]
[422649154,1779205851000,-254.52837,0.0003013,7]
[422649155,1779205851000,-254.528364,0.0003013,7]
[422649157,1779205851000,-151.0,0.0003013,7]
[422649160,1779205851000,-151.0,0.0003013,7]
[422649158,1779205851000,-151.0,0.0003013,7]
[422649099,1779205851000,-1587.0,0.0002949,3]
[422649150,1779205851000,-159.28972,0.0003013,7]
[422649131,1779205851000,-151.0,0.00030127,7]
[422649159,1779205851000,-151.0,0.0003013,7]
[422649129,1779205851000,-200.0,0.00030082,2]
[422649130,1779205851000,-200.0,0.000301,11]
[422649098,1779205851000,-2314.0,0.0002949,3]
[422649104,1779205851000,-615.55,0.00029527,7]
[422649106,1779205851000,-1241.12,0.00029532,7]
[422649105,1779205851000,-150.0,0.00029528,2]
[422649102,1779205851000,-2314.0,0.0002949,3]
[422649107,1779205851000,-150.0,0.00029534,2]
[422649108,1779205851000,-208.58623393,0.000297,30]
[422649109,1779205851000,-634.29,0.000297,7]
[422649110,1779205851000,-1006.97,0.000298,30]
[422649112,1779205851000,-1587.0,0.0002981,3]
[422649111,1779205851000,-8715.57779158,0.000298,2]
[422649113,1779205851000,-720.0,0.0002981,3]
[422649114,1779205851000,-2314.0,0.0002981,3]
[422649103,1779205851000,-2314.0,0.0002949,3]
[422649115,1779205851000,-163.0,0.0002981,3]
[422649127,1779205851000,-252.24,0.00030082,2]
[422649128,1779205851000,-200.0,0.00030082,2]
[422649123,1779205851000,-202.73,0.0003,11]
[422649126,1779205851000,-215.15951567,0.0003,3]
[422649116,1779205851000,-163.0,0.0002981,3]
[422649124,1779205851000,-198.0,0.0003,15]
[422649125,1779205851000,-179.53871051,0.0003,3]
[422649122,1779205851000,-908.78626477,0.0003,10]
[422649120,1779205851000,-200.0,0.00029975,2]
[422649118,1779205851000,-1587.0,0.0002981,3]
[422649119,1779205851000,-2314.0,0.0002981,3]
[422649117,1779205851000,-163.0,0.0002981,3]
[422649121,1779205851000,-161.0,0.0003,30]
[422649199,1779205852000,-154.7714,0.00030137,120]
[422649203,1779205852000,-350.0,0.00030137,2]
[422649202,1779205852000,-350.0,0.00030137,2]
[422649198,1779205852000,-8281.038754,0.00030137,120]
[422649192,1779205852000,-8281.038754,0.00030137,120]
[422649195,1779205852000,-8281.038754,0.00030137,120]
[422649197,1779205852000,-8281.038754,0.00030137,120]
[422649194,1779205852000,-8281.038754,0.00030137,120]
[422649193,1779205852000,-8281.038754,0.00030137,120]
[422649191,1779205852000,-8281.038754,0.00030137,120]
[422649196,1779205852000,-8281.038754,0.00030137,120]
[422649201,1779205852000,-255.0,0.00030137,120]
[422649209,1779205852000,-205.0,0.00030137,2]
[422649204,1779205852000,-323.0,0.00030137,2]
[422649205,1779205852000,-250.0,0.00030137,2]
[422649206,1779205852000,-250.0,0.00030137,2]
[422649207,1779205852000,-163.0,0.00030137,2]
[422649208,1779205852000,-150.0,0.00030137,2]
[422649210,1779205852000,-8235.0,0.00030137,120]
[422649214,1779205852000,-559.3,0.00030137,2]
[422649213,1779205852000,-559.3,0.00030137,2]
[422649211,1779205852000,-732.18,0.00030137,30]
[422649215,1779205852000,-352.01,0.00030137,2]
[422649190,1779205852000,-8281.038754,0.00030137,120]
[422649212,1779205852000,-166.84,0.00030137,2]
[422649200,1779205852000,-154.7714,0.00030137,120]
[422649188,1779205852000,-8281.038754,0.00030137,120]
[422649172,1779205852000,-271.47853444,0.00030136,30]
[422649187,1779205852000,-8281.038754,0.00030137,120]
[422649216,1779205852000,-352.01,0.00030137,2]
[422649162,1779205852000,-897.36146,0.0003013,7]
[422649161,1779205852000,-151.0,0.0003013,7]
[422649163,1779205852000,-897.36146,0.0003013,7]
[422649168,1779205852000,-151.0,0.0003013,7]
[422649165,1779205852000,-897.361454,0.0003013,7]
[422649164,1779205852000,-897.36146,0.0003013,7]
[422649166,1779205852000,-151.0,0.0003013,7]
[422649167,1779205852000,-151.0,0.0003013,7]
[422649169,1779205852000,-151.0,0.0003013,7]
[422649171,1779205852000,-151.0,0.0003013,7]
[422649174,1779205852000,-354.35,0.00030136,7]
[422649189,1779205852000,-8281.038754,0.00030137,120]
[422649170,1779205852000,-151.0,0.0003013,7]
[422649175,1779205852000,-354.35,0.00030136,7]
[422649176,1779205852000,-500.0,0.00030137,2]
[422649180,1779205852000,-1011.21,0.00030137,2]
[422649179,1779205852000,-293.87,0.00030137,2]
[422649177,1779205852000,-599.68,0.00030137,2]
[422649178,1779205852000,-200.0,0.00030137,2]
[422649182,1779205852000,-8281.038754,0.00030137,120]
[422649183,1779205852000,-8281.038754,0.00030137,120]
[422649181,1779205852000,-1227.49166707,0.00030137,120]
[422649184,1779205852000,-8281.038754,0.00030137,120]
[422649185,1779205852000,-8281.038754,0.00030137,120]
[422649186,1779205852000,-8281.038754,0.00030137,120]
[422649173,1779205852000,-150.0,0.00030136,30]
[422649217,1779205852000,-200.0,0.00030137,2]
[422649223,1779205852000,-151.0,0.00030137,120]
[422649222,1779205852000,-1541.0,0.00030137,120]
[422649253,1779205852000,-153.0,0.00030155,30]
[422649250,1779205852000,-153.0,0.00030153,30]
[422649252,1779205852000,-152.0,0.00030153,30]
[422649254,1779205852000,-157.0,0.00030155,30]
[422649256,1779205852000,-157.0,0.00030155,30]
[422649255,1779205852000,-234.0,0.00030155,30]